bitfinex/quotes_ETHUSD_20240607
["timestamp","ask_amount","ask_price","bid_price","bid_amount"]
[1717781173269,2.6528,3769.6,3768.7,2.65342]
[1717781173569,2.6528,3769.6,3768.3,4.1299]
[1717781173570,2.65305,3769.3,3768.3,6.78355]
[1717781173943,2.65305,3769.3,3768.3,5.04055]
[1717781175494,2.65279,3769.7,3768.6,2.65349]
[1717781175659,2.65294,3769.5,3768.6,2.65349]
[1717781177683,2.65265,3769.9,3768.8,2.65329]
[1717781177860,10.1696,3770.0,3769.1,4.39614]
[1717781178245,10.1696,3770.0,3769.2,3.0]
[1717781178445,2.65273,3769.7,3768.7,2.65336]
[1717781178646,2.65294,3769.4,3768.3,8.04054]
[1717781178858,2.65314,3769.2,3768.3,3.0]
[1717781179085,2.65331,3768.9,3768.1,3.0]
[1717781179589,2.65331,3768.9,3768.0,2.65391]
[1717781179879,2.6535,3768.7,3767.8,2.2885]
[1717781180243,2.6535,3768.7,3767.7,2.65413]
[1717781180982,2.6535,3768.7,3768.0,1.743]
[1717781181142,2.65321,3769.1,3768.1,2.65385]
[1717781181341,2.65321,3769.1,3768.2,0.439685]
[1717781181546,2.65335,3768.9,3768.0,1.743]
[1717781181748,2.65351,3768.6,3767.8,5.65406]
[1717781186996,2.6533,3768.9,3767.8,5.65406]
[1717781189098,2.6533,3768.9,3768.1,1.743]
[1717781189403,10.03259,3769.9,3768.5,2.65352]
[1717781189404,2.65309,3769.2,3768.5,2.65352]
[1717781189607,2.65309,3769.2,3768.6,3.0]
[1717781189962,2.65288,3769.5,3768.6,3.0]
[1717781190225,2.65288,3769.5,3768.7,2.65342]
[1717781190362,2.65288,3769.5,3768.8,3.565342]
[1717781192414,2.65288,3769.5,3768.8,3.0]
[1717781195789,2.65267,3769.8,3768.9,2.65325]
[1717781197503,2.65267,3769.8,3769.1,2.6531]
[1717781197708,2.65267,3769.8,3769.2,0.26531]
[1717781198865,2.65267,3769.8,3769.2,2.71801]
[1717781199064,2.65267,3769.8,3769.4,1.743]
[1717781199404,10.1696,3770.0,3769.4,1.743]
[1717781204099,2.65259,3769.9,3769.4,1.743]
[1717781205213,2.65259,3769.9,3769.4,1.693]
[1717781210519,2.65274,3769.7,3769.2,3.0]
[1717781210734,10.1696,3770.0,3769.2,1.743]
[1717781210735,2.65289,3769.5,3769.2,1.743]
[1717781211838,10.1696,3770.0,3769.2,1.743]
[1717781211839,2.6527,3769.8,3769.2,1.743]
[1717781212168,2.6527,3769.8,3769.6,1.743]
[1717781214631,10.1696,3770.0,3769.6,1.743]
[1717781216331,2.6526,3769.9,3769.3,4.743]
[1717781218753,2.65274,3769.7,3769.3,4.743]
[1717781218915,2.65274,3769.7,3769.3,1.743]
[1717781221128,12.82216,3770.0,3769.3,1.743]
[1717781223910,12.82216,3770.0,3769.3,4.39599]
[1717781226958,2.65267,3769.8,3769.3,1.743]
[1717781227922,2.65267,3769.8,3769.3,1.644377]
[1717781231517,10.1696,3770.0,3769.3,1.644377]
[1717781231957,2.65259,3769.9,3769.3,1.644377]
[1717781233938,2.65259,3769.9,3769.8,0.726]
[1717781234163,3.934809,3769.9,3769.8,0.726]
[1717781234467,2.65297,3769.4,3768.6,2.4756]
[1717781234667,2.65275,3769.7,3768.3,2.65368]
[1717781234823,2.65275,3769.7,3769.2,0.726]
[1717781235028,2.65301,3769.3,3769.2,0.726]
[1717781235958,2.65301,3769.3,3768.7,1.743]
[1717781236258,2.65283,3769.6,3769.1,1.743]
[1717781236633,2.65283,3769.6,3769.2,1.743]
[1717781237925,2.65283,3769.6,3769.2,2.182626]
[1717781238827,2.65283,3769.6,3769.2,1.743]
[1717781239249,2.65261,3769.9,3769.2,1.743]
[1717781242170,2.65261,3769.9,3769.2,4.1325]
[1717781242739,2.65275,3769.7,3769.2,1.743]
[1717781243359,2.65291,3769.5,3768.9,3.0]
[1717781243530,2.65303,3769.3,3768.9,3.0]
[1717781243729,2.65303,3769.3,3768.6,3.0]
[1717781243931,2.918333,3769.3,3768.6,3.0]
[1717781244426,2.918333,3769.3,3768.5,3.0]
[1717781244538,2.6532,3769.1,3768.5,3.0]
[1717781245838,2.65295,3769.4,3768.7,1.743]
[1717781246232,2.65273,3769.7,3768.7,2.482658]
[1717781246440,2.65273,3769.7,3769.1,1.743]
[1717781248238,2.65273,3769.7,3769.1,4.743]
[1717781250550,2.65291,3769.5,3769.1,1.743]
[1717781250758,2.918201,3769.5,3768.9,3.0]
[1717781250956,2.65291,3769.5,3768.7,4.743]
[1717781252995,2.65291,3769.5,3768.7,7.3964]
[1717781258118,2.65303,3769.3,3768.7,7.3964]
[1717781258314,2.65303,3769.3,3768.7,4.743]
[1717781258608,2.65303,3769.3,3768.8,3.0]
[1717781258807,2.65303,3769.3,3768.7,1.743]
[1717781259719,2.65303,3769.3,3768.7,4.743]
[1717781260078,2.65314,3769.2,3768.7,4.743]
[1717781260321,2.65314,3769.2,3768.7,1.743]
[1717781262298,2.65324,3769.0,3768.4,3.0]
[1717781262813,2.65337,3768.8,3768.4,3.0]
[1717781262993,2.65337,3768.8,3768.2,1.743]
[1717781263832,2.65337,3768.8,3768.6,1.743]
[1717781265622,2.65229719,3768.8,3768.6,1.743]
[1717781266043,2.65229719,3768.8,3768.7,0.727]
[1717781266185,3.143539,3769.6,3768.7,0.727]
[1717781266186,2.6532,3769.1,3768.7,0.727]
[1717781266393,2.6532,3769.1,3768.3,3.0]
[1717781266394,2.6532,3769.1,3769.0,0.727]
[1717781268234,2.65299,3769.4,3769.0,0.727]
[1717781268430,2.65299,3769.4,3769.3,0.727]
[1717781270594,2.6531,3769.2,3768.6,2.65349]
[1717781270796,2.6531,3769.2,3769.1,0.727]
[1717781271826,2.2548,3769.7,3769.1,0.727]
[1717781271827,2.65288,3769.5,3769.1,0.727]
[1717781272133,2.65288,3769.5,3769.4,0.727]
[1717781272942,10.1696,3770.0,3769.4,0.727]
[1717781272943,2.65271,3769.8,3769.4,0.727]
[1717781273139,2.65271,3769.8,3769.6,0.727]
[1717781276824,10.1696,3770.0,3769.8,2.65263]
[1717781277005,10.1696,3770.0,3769.9,1.064963]
[1717781277722,10.1696,3770.0,3769.9,4.064963]
[1717781279818,10.1696,3770.0,3769.9,5.079963]
[1717781285251,10.1696,3770.0,3769.9,4.742]
[1717781290854,10.58512459,3770.0,3769.9,4.742]
[1717781291634,10.1696,3770.0,3769.9,4.742]
[1717781295581,2.65268,3769.8,3768.9,2.65324]
[1717781295765,10.1696,3770.0,3768.9,2.65324]
[1717781295766,5.072,3769.6,3768.9,4.39524]
[1717781296077,5.072,3769.6,3768.9,1.742]
[1717781296679,5.072,3769.6,3768.6,2.65346]
[1717781296978,5.072,3769.6,3768.6,4.39546]
[1717781297152,5.7074228,3769.6,3768.6,4.39546]
[1717781297873,2.65299,3769.4,3769.0,1.742]
[1717781298885,2.4192,3769.6,3769.0,1.742]
[1717781299084,2.65274,3769.7,3769.0,1.742]
[1717781299443,2.65293,3769.5,3769.0,1.742]
[1717781300058,2.918223,3769.5,3769.0,1.742]
[1717781300387,5.13329,3769.2,3768.6,4.742]
[1717781300593,5.13329,3769.2,3768.7,3.0]
[1717781300888,5.13329,3769.2,3768.6,1.742]
[1717781301891,5.13329,3769.2,3768.2,3.0]
[1717781302055,5.13329,3769.2,3769.1,0.726]
[1717781305970,2.65309,3769.2,3769.1,0.726]
[1717781306354,2.65289,3769.5,3769.1,0.726]
[1717781306584,2.65289,3769.5,3769.4,0.726]
[1717781310592,2.6527,3769.8,3769.4,0.726]
[1717781310795,10.1696,3770.0,3769.7,0.726]
[1717781310953,10.1696,3770.0,3769.9,0.726]
[1717781319702,5.1596,3770.0,3769.9,3.107]
[1717781319907,3.5097507,3770.0,3769.9,6.107]
[1717781320209,3.5097507,3770.0,3769.9,7.282969]
[1717781320767,2.5879507,3770.0,3769.9,7.282969]
[1717781321573,2.2409507,3770.0,3769.9,7.282969]
[1717781321901,7.38,3771.2,3770.2,2.65231]
[1717781322063,2.65134,3771.7,3770.8,1.741]
[1717781323277,2.65134,3771.7,3770.8,4.56699]
[1717781325010,2.65134,3771.7,3771.0,2.65178]
[1717781325237,2.65134,3771.7,3771.2,1.741]
[1717781326100,2.3158,3771.8,3771.2,1.741]
[1717781326279,2.65106,3772.1,3771.6,1.741]
[1717781327592,2.65085,3772.4,3771.6,1.741]
[1717781327777,2.65085,3772.4,3771.6,4.741]
[1717781328410,2.65085,3772.4,3771.7,2.65129]
[1717781330270,4.94394,3772.7,3771.8,3.0]
[1717781330713,2.65064,3772.7,3771.9,2.65117]
[1717781330871,4.96032,3773.0,3772.1,2.65103]
[1717781331073,4.96032,3773.0,3772.2,3.0]
[1717781331778,5.456352,3773.0,3772.2,3.0]
[1717781333215,2.65063,3772.7,3772.2,3.0]
[1717781333416,2.65063,3772.7,3772.0,1.741]
[1717781333713,2.6508,3772.5,3771.9,3.0]
[1717781333922,2.65094,3772.3,3771.6,4.741]
[1717781334088,2.3676,3772.2,3771.6,3.0]
[1717781334410,2.3676,3772.2,3771.3,1.741]
[1717781334411,2.65107,3772.1,3771.3,4.741]
[1717781334682,2.65107,3772.1,3771.4,2.65151]
[1717781334823,2.65065,3772.7,3771.7,1.741]
[1717781335189,2.65065,3772.7,3772.1,1.741]
[1717781335729,2.65044,3773.0,3772.1,1.741]
[1717781335945,3.156734,3773.0,3772.1,4.741]
[1717781336513,3.156734,3773.0,3772.2,2.65096]
[1717781337139,2.65044,3773.0,3772.2,2.65096]
[1717781337307,2.65022,3773.3,3772.6,2.2686]
[1717781337506,2.65022,3773.3,3772.9,1.741]
[1717781338630,4.98402,3773.3,3772.5,1.741]
[1717781338835,5.482422,3773.3,3772.5,4.741]
[1717781340780,2.65038,3773.1,3772.5,1.741]
[1717781341121,2.65016,3773.4,3772.5,4.39172]
[1717781341355,2.65016,3773.4,3772.6,3.0]
[1717781342198,2.65016,3773.4,3772.7,2.6506]
[1717781342658,2.65016,3773.4,3772.8,3.0]
[1717781343816,2.65016,3773.4,3772.5,4.741]
[1717781344059,3.163336,3773.4,3772.5,4.741]
[1717781345771,3.163336,3773.4,3772.6,2.65068]
[1717781345964,3.163336,3773.4,3772.7,3.0]
[1717781346465,5.13156,3773.7,3772.8,2.65054]
[1717781346781,2.64996,3773.7,3773.0,2.6504]
[1717781346981,2.64973,3774.0,3773.0,2.6504]
[1717781347142,3.156843,3774.0,3773.0,2.6504]
[1717781347474,2.64988,3773.8,3773.0,2.6504]
[1717781347659,2.64988,3773.8,3773.1,3.0]
[1717781351759,5.06308,3774.1,3773.2,2.65021]
[1717781351932,2.64968,3774.1,3773.4,2.6501]
[1717781352333,2.64968,3774.1,3773.4,3.44366]
[1717781352765,2.64968,3774.1,3773.4,0.79356]
[1717781353745,2.6498,3773.9,3773.1,5.65029]
[1717781355272,2.64994,3773.7,3773.1,5.65029]
[1717781355671,2.64975,3774.0,3773.1,5.65029]
[1717781355869,5.05786,3774.5,3773.1,3.0]
[1717781355870,2.64987,3773.8,3773.1,3.0]
[1717781356068,2.64987,3773.8,3772.9,1.741]
[1717781356388,2.4386,3774.1,3772.8,3.0]
[1717781356548,2.4306,3774.1,3772.5,3.0]
[1717781356751,2.65017,3773.4,3772.5,3.0]
[1717781356938,2.65017,3773.4,3772.6,0.976218]
[1717781357138,5.08827,3773.4,3772.6,0.976218]
[1717781357353,2.4381,3773.4,3772.6,0.976218]
[1717781357880,2.4381,3773.4,3772.3,2.3704]
[1717781358080,2.4381,3773.4,3772.9,0.725]
[1717781358251,2.65029,3773.2,3772.9,0.725]
[1717781358441,2.65029,3773.2,3772.3,2.3704]
[1717781358635,2.64999,3773.6,3772.3,2.3704]
[1717781358838,2.65048,3772.9,3772.7,0.725]
[1717781359135,2.65048,3772.9,3772.2,3.0]
[1717781359335,2.65048,3772.9,3772.5,0.725]
[1717781360053,2.65048,3772.9,3771.9,4.74]
[1717781360253,2.65048,3772.9,3772.0,0.9693]
[1717781360651,2.6507,3772.6,3772.0,0.9693]
[1717781361247,2.65052,3772.9,3772.0,3.62038]
[1717781361464,0.41521194,3773.0,3772.3,1.74]
[1717781361672,0.41521194,3773.0,3772.3,4.74]
[1717781361864,0.41521194,3773.0,3772.4,0.739094]
[1717781362688,3.06565194,3773.0,3772.4,0.739094]
[1717781364651,2.65061,3772.8,3772.1,3.0]
[1717781364885,2.65061,3772.8,3772.0,5.7093]
[1717781368362,2.65061,3772.8,3772.1,2.65104]
[1717781368570,2.65061,3772.8,3772.2,3.0]
[1717781368772,2.65061,3772.8,3772.3,0.836034]
[1717781370208,0.008,3773.6,3772.5,2.2931]
[1717781370394,2.65007,3773.5,3773.0,1.74]
[1717781370994,2.65007,3773.5,3772.7,3.0]
[1717781371192,2.65007,3773.5,3772.8,0.968376]
[1717781372770,0.008,3774.0,3772.3,0.836034]
[1717781372771,4.94778,3773.2,3772.3,3.486924]
[1717781372970,2.2975,3773.2,3772.0,2.65107]
[1717781373169,2.2975,3773.2,3772.1,3.0]
[1717781373170,2.65057,3772.8,3772.1,3.0]
[1717781373409,2.65057,3772.8,3771.7,5.10658]
[1717781373911,2.65076,3772.5,3771.7,2.4553]
[1717781374118,5.14876,3772.5,3771.4,2.4901]
[1717781375109,5.14876,3772.5,3771.4,5.4901]
[1717781375694,2.65099,3772.2,3771.4,5.4901]
[1717781375909,2.65099,3772.2,3771.5,1.3889825]
[1717781376079,2.65099,3772.2,3771.5,4.3889825]
[1717781376509,0.58137309,3773.1,3771.5,6.1289825]
[1717781376510,2.65075,3772.6,3771.5,6.1289825]
[1717781377421,2.65047,3773.0,3771.9,4.39116]
[1717781377579,2.65047,3773.0,3772.0,0.439116]
[1717781378184,2.65047,3773.0,3772.0,3.439116]
[1717781378380,2.3324,3773.2,3772.1,5.01107]
[1717781378594,2.3324,3773.2,3772.3,1.74]
[1717781379910,5.01787,3773.4,3772.3,4.39084]
[1717781380113,5.01787,3773.4,3772.4,3.975094]
[1717781381696,2.65017,3773.4,3772.5,2.65075]
[1717781383685,2.3546,3773.8,3772.4,3.975094]
[1717781383686,2.65032,3773.2,3772.4,3.0]
[1717781383887,2.65043,3773.0,3772.3,3.0]
[1717781384208,2.65043,3773.0,3772.3,3.8450156]
[1717781386504,2.65043,3773.0,3772.3,0.8450156]
[1717781386831,2.65043,3773.0,3772.4,3.0]
[1717781387043,2.65043,3773.0,3772.1,3.0]
[1717781387209,2.6506,3772.8,3771.8,1.59235782]
[1717781387408,2.6506,3772.8,3771.7,1.59235782]
[1717781387615,2.65072,3772.6,3771.6,12.44566]
[1717781388286,2.65072,3772.6,3771.7,0.28666453]
[1717781388490,2.65072,3772.6,3771.6,12.44566]
[1717781388787,2.65072,3772.6,3771.7,4.57782407]
[1717781388995,2.65072,3772.6,3771.7,4.86448821]
[1717781389257,2.65072,3772.6,3771.7,4.57782407]
[1717781391885,2.65085,3772.4,3771.7,4.57782407]
[1717781392186,2.65065,3772.7,3771.7,3.0]
[1717781392917,2.65065,3772.7,3771.7,3.28664888]
[1717781393122,2.65065,3772.7,3771.8,2.65125]
[1717781393327,2.65065,3772.7,3771.9,3.0]
[1717781393526,2.65065,3772.7,3772.0,0.865125]
[1717781393697,2.65056,3772.8,3772.0,0.865125]
[1717781395124,2.65056,3772.8,3772.0,3.516205]
[1717781395324,2.65038,3773.1,3772.0,3.516205]
[1717781395729,2.3457,3773.4,3772.3,1.74]
[1717781395730,2.65017,3773.4,3772.3,1.74]
[1717781395963,2.65017,3773.4,3772.5,2.65074]
[1717781397076,7.38,3773.7,3772.6,2.4032]
[1717781397077,10.02995,3773.7,3772.6,2.4032]
[1717781397265,2.64995,3773.7,3772.7,4.3906]
[1717781400467,2.462,3774.0,3773.0,2.65036]
[1717781400468,2.65775,3774.0,3773.0,2.65036]
[1717781400675,2.64975,3774.0,3773.0,2.65036]
[1717781400873,2.64975,3774.0,3773.1,0.265036]
[1717781401593,2.64994,3773.7,3773.1,0.265036]
[1717781401790,2.64994,3773.7,3772.7,4.74]
[1717781403008,2.64994,3773.7,3772.8,2.65051]
[1717781404305,2.65009,3773.5,3772.7,3.0]
[1717781404537,5.05333,3773.3,3772.6,3.0]
[1717781404670,5.05333,3773.3,3772.4,3.35299558]
[1717781404864,5.05333,3773.3,3772.2,4.02713955]
[1717781405073,2.65039,3773.1,3772.2,2.4346]
[1717781405298,2.65039,3773.1,3772.1,2.65101]
[1717781405816,2.65039,3773.1,3771.9,2.3254]
[1717781405817,2.4031,3773.3,3771.9,0.28663749]
[1717781405966,2.2645,3772.6,3771.6,2.3295]
[1717781406173,2.2645,3772.6,3771.7,0.498096]
[1717781407068,0.008,3773.3,3771.8,2.65123]
[1717781407069,2.3546,3773.1,3771.8,2.65123]
[1717781407268,2.3546,3773.1,3770.9,1.85489326]
[1717781407269,2.3626,3773.5,3772.4,1.74]
[1717781407509,5.00472,3773.5,3772.4,1.74]
[1717781408784,2.6503,3773.2,3772.4,1.74]
[1717781408983,3.15079,3773.2,3772.2,3.0]
[1717781409302,2.65048,3772.9,3772.2,3.0]
[1717781409507,2.65048,3772.9,3771.9,2.65117]
[1717781409822,0.008,3773.5,3772.6,4.0462]
[1717781410052,2.65012,3773.5,3772.4,2.65083]
[1717781410214,2.65012,3773.5,3772.5,0.669703]
[1717781412264,2.65025,3773.3,3772.5,0.669703]
[1717781412429,2.65025,3773.3,3772.4,2.65083]
[1717781413632,2.65025,3773.3,3772.2,4.0462]
[1717781413954,2.65025,3773.3,3772.3,3.0]
[1717781414656,2.65036,3773.1,3772.3,3.0]
[1717781414813,2.65036,3773.1,3772.2,4.74]
[1717781415014,2.65036,3773.1,3772.3,0.739102]
[1717781415911,2.65036,3773.1,3772.3,3.389952]
[1717781416243,2.65011,3773.5,3772.3,3.389952]
[1717781416573,2.65011,3773.5,3771.9,2.3115]
[1717781416574,2.4165,3772.9,3771.9,2.3115]
[1717781416722,2.4165,3772.9,3771.5,9.02233242]
[1717781416918,2.4165,3772.9,3771.5,1.59233242]
[1717781417125,2.4165,3772.9,3771.4,2.3115]
[1717781417352,2.4165,3772.9,3771.5,0.40515]
[1717781418057,2.6508,3772.5,3771.7,2.65129]
[1717781418362,2.6508,3772.5,3771.8,3.0]
[1717781419437,2.6508,3772.5,3771.6,2.65138]
[1717781419738,2.6508,3772.5,3771.7,3.536803]
[1717781420767,5.11814,3772.3,3771.7,0.536803]
[1717781420941,5.11814,3772.3,3771.4,3.0]
[1717781422026,0.008,3773.1,3771.7,1.74]
[1717781422366,2.794,3773.9,3770.7,2.91863136]
[1717781422367,2.65073,3772.6,3772.1,1.74]
[1717781422525,2.65073,3772.6,3771.7,4.39128]
[1717781424765,2.3608,3773.0,3772.1,2.3504]
[1717781424766,2.65051,3772.9,3772.1,2.3504]
[1717781428302,0.41525197,3772.8,3772.1,2.3504]
[1717781428504,0.41525197,3772.8,3772.2,0.500148]
[1717781430607,2.65067,3772.7,3771.7,4.99098]
[1717781430804,2.65067,3772.7,3771.8,3.0]
[1717781431489,2.65085,3772.4,3771.8,3.0]
[1717781431685,2.2565,3772.3,3771.8,3.0]
[1717781432060,2.65085,3772.4,3771.8,3.0]
[1717781432303,2.65085,3772.4,3771.8,3.565128]
[1717781432897,2.65085,3772.4,3771.8,3.0]
[1717781433065,2.65085,3772.4,3771.4,10.08152]
[1717781433265,2.65085,3772.4,3771.5,3.0]
[1717781435263,2.65085,3772.4,3771.6,2.65136]
[1717781439904,0.41525197,3772.8,3772.2,2.65096]
[1717781440130,0.41525197,3772.8,3772.3,0.265096]
[1717781441235,0.41525197,3772.8,3772.4,2.65082]
[1717781442093,0.36525197,3772.8,3772.6,2.65066]
[1717781442293,2.65024,3773.3,3772.6,2.65066]
[1717781442929,2.4623,3773.4,3772.8,2.65052]
[1717781443832,2.4705,3773.8,3773.0,2.65038]
[1717781448114,2.64994,3773.7,3773.0,2.65038]
[1717781448711,2.65011,3773.5,3772.8,0.509812]
[1717781449020,2.65011,3773.5,3772.8,3.509812]
[1717781451742,2.65011,3773.5,3772.8,3.0]
[1717781452840,2.65011,3773.5,3772.9,2.65047]
[1717781453918,2.64984,3773.9,3772.9,2.65047]
[1717781455283,2.64984,3773.9,3773.1,2.65032]
[1717781458069,2.64984,3773.9,3773.4,0.725]
[1717781459451,2.422,3774.1,3773.4,0.725]
[1717781461185,3.06484098,3774.2,3773.6,0.725]
[1717781461385,0.41522098,3774.2,3773.9,0.725]
[1717781462663,0.41522098,3774.2,3773.7,3.3749]
[1717781462862,0.41522098,3774.2,3773.9,0.725]
[1717781463968,0.41522098,3774.2,3773.7,3.3749]
[1717781464187,2.3588,3774.1,3773.7,3.0450998]
[1717781464380,2.3588,3774.1,3773.7,3.7700998]
[1717781465574,0.41522098,3774.2,3773.9,0.725]
[1717781467712,0.41522098,3774.2,3773.7,3.7700998]
[1717781468366,0.41522098,3774.2,3773.9,0.725]
[1717781468969,0.41522098,3774.2,3773.9,1.10200998]
[1717781469883,0.41522098,3774.2,3774.1,0.725]
[1717781473714,0.41522098,3774.2,3774.1,2.9945]
[1717781473915,0.41522098,3774.2,3774.1,5.9945]
[1717781474179,0.41522098,3774.2,3774.1,5.2695]
[1717781474381,0.41522098,3774.2,3774.0,3.0]
[1717781474516,0.41522098,3774.2,3773.9,2.64974]
[1717781474716,0.41522098,3774.2,3773.8,0.725]
[1717781474967,0.41522098,3774.2,3774.0,0.725]
[1717781475252,0.41522098,3774.2,3773.7,3.0]
[1717781475550,0.41522098,3774.2,3773.3,5.07108]
[1717781475551,0.41522098,3774.2,3773.8,0.725]
[1717781475738,2.3134,3774.0,3773.6,0.725]
[1717781477437,2.3134,3774.0,3773.8,0.725]
[1717781477873,2.3134,3774.0,3773.4,3.0]
[1717781481277,0.41522098,3774.2,3773.9,2.64972]
[1717781489734,0.41522098,3774.2,3774.1,2.64963]
[1717781490020,0.41522098,3774.2,3774.1,3.479565]
[1717781491220,0.41522098,3774.2,3774.1,5.808765]
[1717781491934,2.64897,3775.1,3774.3,2.64944]
[1717781492444,0.41507476,3774.5,3774.3,2.64944]
[1717781492596,4.93125,3775.4,3774.6,2.64925]
[1717781493127,0.41506266,3775.3,3774.6,2.64925]
[1717781494742,0.41506266,3775.3,3774.8,2.64911]
[1717781496113,0.41506266,3775.3,3775.0,2.64897]
[1717781497131,0.41506266,3775.3,3775.2,2.64886]
[1717781497338,0.41506266,3775.3,3775.2,3.322796]
[1717781497499,4.91133,3776.3,3775.4,2.6487]
[1717781497837,4.90333,3776.3,3775.4,2.6487]
[1717781498211,0.008,3776.7,3775.7,2.6485]
[1717781498212,2.64788,3776.6,3775.7,2.6485]
[1717781498522,3.158128,3776.6,3775.7,2.6485]
[1717781499209,2.3622,3776.5,3775.7,2.6485]
[1717781499530,2.65569,3776.9,3775.9,2.64832]
[1717781499707,2.64769,3776.9,3775.9,2.64832]
[1717781502235,0.008,3777.1,3775.5,4.1969]
[1717781502236,0.008,3777.1,3776.0,1.739]
[1717781502403,2.6475,3777.2,3776.2,2.64812]
[1717781502608,2.4077,3777.3,3775.9,2.64835]
[1717781502609,2.64765,3777.0,3775.9,2.64835]
[1717781502854,2.64779,3776.8,3776.0,3.0]
[1717781503141,2.64779,3776.8,3775.6,0.41969]
[1717781503508,2.64779,3776.8,3775.6,3.41969]
[1717781503806,2.4518,3776.9,3775.6,3.41969]
[1717781503807,3.0628118,3776.6,3775.6,0.41969]
[1717781504007,3.0628118,3776.6,3775.7,2.64848]
[1717781504207,0.4148718,3776.6,3775.8,4.639117]
[1717781504504,0.008,3776.9,3775.9,2.64833]
[1717781504505,2.3154,3776.9,3775.9,2.64833]
[1717781505543,2.64782,3776.7,3775.9,2.64833]
[1717781505913,0.008,3777.0,3776.2,2.64815]
[1717781506112,2.64759,3777.1,3776.2,2.64815]
[1717781506311,2.64759,3777.1,3776.3,0.264815]
[1717781507326,2.64759,3777.1,3776.2,2.64815]
[1717781509318,0.008,3777.3,3776.6,2.64785]
[1717781509650,2.64724,3777.6,3776.6,2.64785]
[1717781509651,2.65524,3777.6,3776.6,2.64785]
[1717781510266,2.65524,3777.6,3776.9,2.64767]
[1717781510464,2.64724,3777.6,3777.0,0.264767]
[1717781510631,2.64724,3777.6,3776.9,2.64767]
[1717781510833,0.008,3777.7,3776.9,2.64767]
[1717781511158,2.64715,3777.7,3776.9,2.64767]
[1717781511357,2.65515,3777.7,3776.9,2.64767]
[1717781511591,2.64731,3777.5,3776.6,2.64786]
[1717781511877,2.65531,3777.5,3776.7,0.264786]
[1717781512185,2.64731,3777.5,3776.8,2.64772]
[1717781512942,0.008,3777.6,3776.8,2.64772]
[1717781513174,2.64706,3777.8,3776.8,2.64772]
[1717781513175,0.008,3777.7,3776.8,2.64772]
[1717781513679,0.008,3777.7,3777.0,2.64755]
[1717781513843,2.65506,3777.8,3777.0,2.912305]
[1717781514043,0.008,3777.8,3777.1,2.3224]
[1717781514248,0.008,3777.9,3777.4,2.64728]
[1717781514449,0.008,3778.0,3777.4,2.64728]
[1717781515446,2.64664,3778.4,3777.1,2.3224]
[1717781515447,0.008,3778.1,3777.6,2.64713]
[1717781515647,0.008,3778.2,3777.6,2.64713]
[1717781515848,2.65481,3778.2,3777.3,2.64736]
[1717781516041,2.65481,3778.2,3777.0,3.264755]
[1717781516042,0.008,3778.0,3777.5,2.64721]
[1717781516246,0.008,3778.1,3777.5,2.64721]
[1717781521097,0.008,3778.2,3777.5,2.64721]
[1717781521299,0.008,3778.2,3777.1,0.2003755]
[1717781521300,0.008,3778.2,3777.7,2.64708]
[1717781521763,0.008,3778.2,3777.9,2.64692]
[1717781521951,0.008,3778.3,3778.1,2.64677]
[1717781522152,0.008,3778.4,3778.1,2.64677]
[1717781523403,0.008,3778.4,3778.3,2.64669]
[1717781523547,0.008,3778.5,3778.3,6.424346]
[1717781523747,0.008,3778.5,3778.3,2.64669]
[1717781523947,0.008,3778.5,3778.4,2.2559]
[1717781524164,0.008,3778.5,3778.4,5.2559]
[1717781524364,0.008,3778.5,3778.4,6.220059]
[1717781524973,0.008,3778.5,3778.4,3.964159]
[1717781528182,0.008,3778.5,3778.4,8.900379]
[1717781528773,0.008,3778.5,3778.4,6.610779]
[1717781533289,0.008,3778.5,3778.4,8.941779]
[1717781534403,0.008,3778.5,3778.4,11.588399]
[1717781536523,0.008,3778.5,3778.4,14.235019]
[1717781536748,0.008,3778.5,3778.4,11.588399]
[1717781537102,0.008,3778.5,3778.4,14.235019]
[1717781538904,0.1250402,3778.6,3778.4,14.235019]
[1717781539745,2.3478,3780.4,3778.5,3.9552219]
[1717781539921,2.3478,3780.4,3779.7,2.64567]
[1717781540446,4.99306,3780.4,3779.4,2.64589]
[1717781540741,4.99306,3780.4,3779.5,3.0]
[1717781541141,2.64541,3780.2,3779.5,3.0]
[1717781541348,2.4044,3780.1,3779.4,2.64589]
[1717781541518,2.4044,3780.1,3779.1,2.64612]
[1717781541519,2.64551,3780.0,3779.1,2.64612]
[1717781541723,2.64568,3779.8,3779.1,2.64612]
[1717781541950,2.3877,3779.7,3779.1,2.64612]
[1717781542154,2.3877,3779.7,3778.2,1.739]
[1717781542155,2.64583,3779.6,3778.7,2.64635]
[1717781543540,2.64597,3779.4,3778.4,2.6466]
[1717781543725,2.3794,3779.1,3778.5,0.26466]
[1717781544056,2.3794,3779.1,3778.4,2.6466]
[1717781544347,2.3794,3779.1,3777.8,7.43]
[1717781544348,2.64639,3778.8,3778.1,2.6468]
[1717781544552,2.64639,3778.8,3777.8,2.647]
[1717781545213,2.64653,3778.6,3777.8,2.647]